bitfinex/quotes_BTCUSD_20220405
["timestamp","ask_amount","ask_price","bid_price","bid_amount"]
[1649147499146,0.7281436,46616.0,46615.0,0.5760953]
[1649147499751,0.7281436,46616.0,46615.0,0.57473532]
[1649147500041,1.0485126,46616.0,46615.0,0.57473532]
[1649147501645,1.0485126,46616.0,46615.0,0.57439251]
[1649147501842,1.22415674,46616.0,46615.0,0.57439251]
[1649147502443,1.0485126,46616.0,46615.0,0.57439251]
[1649147502710,1.22415674,46616.0,46615.0,0.57439251]
[1649147504109,1.22392116,46616.0,46615.0,0.57439251]
[1649147504460,1.22392116,46616.0,46615.0,0.55939251]
[1649147504813,1.04827702,46616.0,46615.0,0.55939251]
[1649147505260,1.22394751,46616.0,46615.0,0.55939251]
[1649147505811,1.04827702,46616.0,46615.0,0.55939251]
[1649147505912,1.04827702,46616.0,46615.0,0.56250001]
[1649147506367,1.22394661,46616.0,46615.0,0.56250001]
[1649147506622,1.04827702,46616.0,46615.0,0.56250001]
[1649147507322,1.22394405,46616.0,46615.0,0.56250001]
[1649147507771,1.04827702,46616.0,46615.0,0.56250001]
[1649147508674,1.22394099,46616.0,46615.0,0.56250001]
[1649147508775,1.04827702,46616.0,46615.0,0.56250001]
[1649147510239,1.34827702,46616.0,46615.0,0.56250001]
[1649147510742,1.34733472,46616.0,46615.0,0.56250001]
[1649147511293,1.34733472,46616.0,46615.0,0.5620926]
[1649147511445,1.04733472,46616.0,46615.0,0.5620926]
[1649147513099,1.34733472,46616.0,46615.0,0.5620926]
[1649147513699,1.04733472,46616.0,46615.0,0.5620926]
[1649147513867,1.34733472,46616.0,46615.0,0.5620926]
[1649147514811,1.04733472,46616.0,46615.0,0.5620926]
[1649147519412,1.04733472,46616.0,46615.0,0.56216004]
[1649147525861,1.04733472,46616.0,46615.0,0.56138277]
[1649147531616,1.04733472,46616.0,46615.0,0.56035553]
[1649147534820,1.04733472,46616.0,46615.0,0.56025668]
[1649147534921,1.26692146,46616.0,46615.0,0.56025668]
[1649147535218,1.04733472,46616.0,46615.0,0.56025668]
[1649147536020,1.04733472,46616.0,46615.0,0.98025668]
[1649147538128,1.03350677,46616.0,46615.0,0.98025668]
[1649147546249,0.56277694,46616.0,46615.0,0.98025668]
[1649147550062,0.56277694,46616.0,46615.0,0.97969317]
[1649147552117,0.30060701,46619.0,46616.0,0.05]
[1649147552317,0.30060701,46619.0,46617.0,0.37596737]
[1649147552421,0.30060701,46619.0,46618.0,0.05]
[1649147552519,0.00060701,46619.0,46618.0,0.05]
[1649147552617,0.31713608,46620.0,46618.0,0.28218578]
[1649147552718,0.31713608,46620.0,46618.0,0.38945178]
[1649147552818,0.31713608,46620.0,46619.0,0.01560931]
[1649147552921,0.107268,46621.0,46619.0,0.10496722]
[1649147552922,0.107875,46621.0,46619.0,0.10496722]
[1649147553068,0.107875,46621.0,46619.0,0.10340629]
[1649147553368,0.26344482,46620.0,46619.0,0.10340629]
[1649147553518,0.107875,46621.0,46619.0,0.10340629]
[1649147553770,0.26344349,46620.0,46619.0,0.10340629]
[1649147554270,0.25074349,46620.0,46619.0,0.10340629]
[1649147556408,0.25074349,46620.0,46619.0,0.10353635]
[1649147556708,0.25074349,46620.0,46619.0,0.00013006]
[1649147557010,0.053633,46621.0,46619.0,0.00013006]
[1649147557532,0.36105443,46621.0,46619.0,0.00013006]
[1649147557610,0.0428,46620.0,46619.0,0.00013006]
[1649147557713,0.34233121,46620.0,46619.0,0.00013006]
[1649147557815,0.99633121,46620.0,46619.0,0.00013006]
[1649147557912,1.00706121,46620.0,46619.0,0.23231584]
[1649147558013,1.15706121,46620.0,46619.0,0.23231584]
[1649147558110,1.69176121,46620.0,46615.0,0.00188287]
[1649147558212,0.654,46618.0,46615.0,0.00188287]
[1649147558311,0.707654,46617.0,46615.0,0.00188287]
[1649147558417,0.77720383,46617.0,46615.0,0.00188287]
[1649147558513,0.74799979,46616.0,46615.0,0.00188287]
[1649147558613,1.08193015,46616.0,46615.0,0.00188287]
[1649147558710,0.84799979,46616.0,46615.0,0.00188287]
[1649147558881,1.03455117,46616.0,46615.0,0.00188287]
[1649147559176,1.01010121,46616.0,46615.0,0.00188287]
[1649147559877,1.24766897,46616.0,46615.0,0.00188287]
[1649147560577,1.27211893,46616.0,46615.0,0.00188287]
[1649147561528,0.96500134,46616.0,46615.0,0.00188287]
[1649147561979,0.96500134,46616.0,46615.0,0.00200911]
[1649147562083,1.10621852,46616.0,46615.0,0.00200911]
[1649147562885,0.96246714,46616.0,46615.0,0.00200911]
[1649147564386,0.96210831,46616.0,46615.0,0.00200911]
[1649147565243,0.96210831,46616.0,46607.0,0.213]
[1649147565244,0.65364117,46614.0,46607.0,0.001]
[1649147565350,2.75,46615.0,46607.0,0.001]
[1649147565351,0.2,46610.0,46607.0,0.001]
[1649147565442,0.95364117,46609.0,46607.0,0.001]
[1649147565545,0.95364117,46609.0,46606.0,0.012]
[1649147565546,0.65364117,46607.0,46606.0,0.012]
[1649147565641,0.95364117,46607.0,46606.0,0.012]
[1649147565740,1.58834117,46607.0,46606.0,0.012]
[1649147565991,0.65364117,46605.0,46604.0,0.123358]
[1649147566092,0.95364117,46605.0,46604.0,0.12397381]
[1649147566191,1.05364117,46605.0,46604.0,0.00161581]
[1649147566367,0.65364117,46603.0,46602.0,0.003]
[1649147566525,1.63114117,46603.0,46602.0,0.003]
[1649147566673,1.64200001,46603.0,46602.0,0.003]
[1649147567782,2.87809137,46603.0,46602.0,0.003]
[1649147567881,2.88882137,46603.0,46602.0,0.003]
[1649147569833,2.88882137,46603.0,46602.0,0.00312309]
[1649147570478,2.88882137,46603.0,46602.0,0.00415947]
[1649147571335,2.87796253,46603.0,46602.0,0.00415947]
[1649147571434,2.90241249,46603.0,46602.0,0.00415947]
[1649147572033,2.89742821,46603.0,46602.0,0.00415947]
[1649147573034,0.64865689,46601.0,46600.0,0.00617635]
[1649147573132,0.94865689,46601.0,46600.0,0.00617635]
[1649147573236,1.04865689,46601.0,46600.0,0.0067922]
[1649147573335,0.79145689,46601.0,46600.0,0.0067922]
[1649147573485,1.10231701,46601.0,46600.0,0.0067922]
[1649147573686,0.80231701,46601.0,46600.0,0.0067922]
[1649147574284,0.78880789,46601.0,46600.0,0.00617635]
[1649147575786,1.07794777,46601.0,46600.0,0.00617635]
[1649147575986,1.07794777,46601.0,46600.0,0.00629571]
[1649147577088,1.07324668,46601.0,46600.0,0.00629571]
[1649147577876,1.07324668,46601.0,46600.0,0.21629571]
[1649147579130,0.77324668,46601.0,46600.0,0.21629571]
[1649147580334,0.1428,46601.0,46600.0,0.21629571]
[1649147580435,0.0428,46601.0,46600.0,0.21249571]
[1649147581085,0.1,46602.0,46600.0,0.21249571]
[1649147581188,0.754,46603.0,46601.0,0.05]
[1649147581489,0.754,46603.0,46602.0,0.17138124]
[1649147581490,0.1,46603.0,46602.0,0.17138124]
[1649147581585,0.064381,46607.0,46601.0,0.05]
[1649147581688,0.053651,46607.0,46601.0,0.05]
[1649147581984,0.053651,46607.0,46601.0,0.103658]
[1649147582983,0.053651,46607.0,46602.0,0.00057598]
[1649147583183,0.064381,46607.0,46602.0,0.00057598]
[1649147583831,0.064381,46607.0,46601.0,0.103658]
[1649147583932,0.3,46606.0,46601.0,0.103658]
[1649147584032,0.3,46606.0,46603.0,0.00011545]
[1649147584233,0.654,46605.0,46603.0,0.00011545]
[1649147584333,0.3,46604.0,46603.0,0.00011545]
[1649147584433,0.3,46604.0,46603.0,0.10743145]
[1649147584635,0.1,46605.0,46604.0,0.05]
[1649147585574,0.153651,46607.0,46604.0,0.05]
[1649147585676,0.053651,46607.0,46604.0,0.05]
[1649147586477,0.3,46606.0,46603.0,0.10732145]
[1649147586579,3.404,46605.0,46593.0,0.003]
[1649147586781,0.70767371,46603.0,46597.0,0.0001]
[1649147586882,0.654,46600.0,46597.0,0.0001]
[1649147586976,0.654,46598.0,46597.0,0.0001]
[1649147587076,1.49956012,46598.0,46597.0,0.0001]
[1649147587176,1.59956012,46598.0,46597.0,0.0001]
[1649147587428,1.95185045,46598.0,46597.0,0.0001]
[1649147587726,2.2245841,46598.0,46597.0,0.0001]
[1649147587927,2.2782651,46598.0,46597.0,0.0001]
[1649147588427,1.92597477,46598.0,46597.0,0.0001]
[1649147588627,1.96877477,46598.0,46597.0,0.0001]
[1649147588877,1.66877477,46598.0,46597.0,0.0001]
[1649147589226,1.66877477,46598.0,46597.0,0.2101]
[1649147589330,1.66877477,46598.0,46597.0,0.2564]
[1649147590328,1.39604112,46598.0,46597.0,0.2564]
[1649147591134,1.385181,46598.0,46597.0,0.2564]
[1649147591685,0.731181,46598.0,46597.0,0.2564]
[1649147591783,0.741911,46598.0,46597.0,0.2564]
[1649147592184,0.741911,46598.0,46597.0,0.25651221]
[1649147593337,1.395911,46598.0,46597.0,0.25651221]
[1649147593437,1.385181,46598.0,46597.0,0.25651221]
[1649147595193,0.631181,46598.0,46597.0,0.25651221]
[1649147595297,0.053681,46598.0,46597.0,0.25651221]
[1649147595394,0.053657,46601.0,46597.0,0.25651221]
[1649147595499,0.053657,46601.0,46598.0,0.107314]
[1649147595696,0.01073,46605.0,46598.0,0.107314]
[1649147595896,0.0321,46608.0,46598.0,0.107314]
[1649147596097,0.0321,46608.0,46599.0,0.00058013]
[1649147596196,0.65458005,46606.0,46599.0,0.00058013]
[1649147596633,0.654,46603.0,46599.0,0.00058013]
[1649147596733,0.6851338,46603.0,46599.0,0.00058013]
[1649147596829,0.6958638,46603.0,46599.0,0.00058013]
[1649147597130,0.7975598,46602.0,46597.0,0.36382821]
[1649147597279,0.7975598,46602.0,46599.0,0.00058014]
[1649147597378,0.654,46600.0,46599.0,0.00058014]
[1649147597478,0.654,46600.0,46597.0,0.26390835]
[1649147597581,2.904,46599.0,46597.0,0.31390835]
[1649147597679,0.3,46598.0,46597.0,0.31390835]
[1649147598181,0.3,46598.0,46597.0,0.31379614]
[1649147598583,2.704,46599.0,46597.0,0.31379614]
[1649147598686,0.3,46598.0,46597.0,0.31379614]
[1649147598984,0.3428,46598.0,46597.0,0.31379614]
[1649147599182,0.4428,46598.0,46597.0,0.31379614]
[1649147600177,0.4428,46598.0,46597.0,0.31390835]
[1649147600832,0.1428,46598.0,46597.0,0.31390835]
[1649147600935,0.3428,46598.0,46597.0,0.31390835]
[1649147601030,0.4428,46598.0,46597.0,0.31390835]
[1649147601333,0.4428,46598.0,46597.0,0.26390835]
[1649147601986,0.1428,46598.0,46597.0,0.26390835]
[1649147602184,0.0428,46598.0,46597.0,0.26390835]
[1649147602937,0.0428,46598.0,46597.0,0.31390835]
[1649147603447,0.6968,46598.0,46597.0,0.31390835]
[1649147603545,0.6964553,46598.0,46597.0,0.31390835]
[1649147603646,0.7964553,46598.0,46597.0,0.31390835]
[1649147603981,1.0964553,46598.0,46597.0,0.31390835]
[1649147604284,1.10731542,46598.0,46597.0,0.26021221]
[1649147604586,1.64201542,46598.0,46597.0,0.26021221]
[1649147604887,1.78554788,46598.0,46597.0,0.26021221]
[1649147605489,1.78554788,46598.0,46597.0,0.23419099]
[1649147605591,1.78554788,46598.0,46597.0,0.21021221]
[1649147606138,1.78554788,46598.0,46596.0,0.003]
[1649147606139,3.404,46597.0,46596.0,0.003]
[1649147606238,3.41486361,46597.0,46596.0,0.003]
[1649147606339,4.09236361,46597.0,46596.0,0.003]
[1649147606539,4.09000691,46597.0,46596.0,0.003]
[1649147606938,4.23353937,46597.0,46596.0,0.003]
[1649147607947,4.55071706,46597.0,46596.0,0.003]
[1649147609753,3.404,46596.0,46595.0,0.003]
[1649147609853,3.52844996,46596.0,46595.0,0.003]
[1649147609951,4.10594996,46596.0,46595.0,0.003]
[1649147610455,0.654,46594.0,46593.0,0.003]
[1649147610552,1.07289996,46594.0,46593.0,0.00357923]
[1649147610653,1.75039996,46594.0,46593.0,0.00357923]
[1649147610855,1.89393242,46594.0,46593.0,0.00357923]
[1649147610953,0.654,46592.0,46591.0,0.063]
[1649147611058,0.954,46592.0,46591.0,0.063]
[1649147611157,1.12124996,46592.0,46591.0,0.013]
[1649147611380,1.17124996,46592.0,46591.0,0.013]
[1649147611580,0.87124996,46592.0,46591.0,0.013]
[1649147611679,2.05708829,46592.0,46591.0,0.013]
[1649147614136,2.05708829,46592.0,46591.0,0.01310907]
[1649147614440,5.55708829,46592.0,46591.0,0.01310907]
[1649147614538,5.54350241,46592.0,46591.0,0.01310907]
[1649147616789,5.53263833,46592.0,46591.0,0.01310907]
[1649147616893,5.54350183,46592.0,46591.0,0.01310907]
[1649147617091,5.38263833,46592.0,46591.0,0.01310907]
[1649147617193,4.72863833,46592.0,46591.0,0.01310907]
[1649147618745,4.87863833,46592.0,46591.0,0.01310907]
[1649147619776,4.82863833,46592.0,46591.0,0.01310907]
[1649147620927,4.82863833,46592.0,46590.0,0.104687]
[1649147621027,0.06459593,46590.0,46589.0,0.00259628]
[1649147621132,0.06459593,46590.0,46589.0,0.002]
[1649147621330,0.06459593,46590.0,46589.0,0.00259628]
[1649147622328,0.06459593,46590.0,46589.0,0.002]
[1649147622672,0.06459593,46590.0,46589.0,0.132]
[1649147623724,0.10739593,46590.0,46589.0,0.132]
[1649147625029,0.10739593,46590.0,46589.0,0.43210578]
[1649147625229,0.06459593,46590.0,46589.0,0.43210578]
[1649147625634,5.23932628,46592.0,46591.0,0.12919185]
[1649147628031,5.23932628,46592.0,46591.0,0.12419185]
[1649147628881,5.23932628,46592.0,46591.0,0.12429751]
[1649147634517,3.6,46592.0,46591.0,0.12429751]
[1649147636120,3.5,46592.0,46591.0,0.42429751]
[1649147636474,3.186155,46592.0,46591.0,0.42429751]
[1649147636969,2.872907,46592.0,46591.0,0.42429751]
[1649147638628,2.872907,46592.0,46591.0,0.41929751]
[1649147640029,2.872907,46592.0,46591.0,0.41545751]
[1649147640432,2.872907,46592.0,46591.0,0.74724143]
[1649147640683,2.242907,46592.0,46591.0,0.74724143]
[1649147640982,1.92426,46592.0,46591.0,0.74724143]
[1649147641183,1.29426,46592.0,46591.0,0.74724143]
[1649147641384,1.29426,46592.0,46591.0,1.15386916]
[1649147641483,1.145298,46592.0,46591.0,1.15386916]
[1649147641685,1.145298,46592.0,46591.0,0.83294116]
[1649147641843,1.145298,46592.0,46591.0,0.41545751]
[1649147642284,0.8647404,46592.0,46591.0,0.41545751]
[1649147642584,0.8647404,46592.0,46591.0,0.50924908]
[1649147643584,0.8397404,46592.0,46591.0,0.50924908]
[1649147644187,0.5193034,46592.0,46591.0,0.50924908]
[1649147644287,0.5193034,46592.0,46591.0,0.41545751]
[1649147644394,0.39017206,46592.0,46591.0,0.41545751]
[1649147644688,0.39017206,46592.0,46591.0,0.45214578]
[1649147644791,0.07204406,46592.0,46591.0,0.45214578]
[1649147647031,0.07204406,46592.0,46591.0,0.15214578]
[1649147647532,0.61945381,46597.0,46592.0,1.85]
[1649147647633,0.61945381,46597.0,46592.0,2.10364799]
[1649147647734,0.61945381,46597.0,46592.0,2.21802399]
[1649147647834,0.61945381,46597.0,46593.0,0.03668654]
[1649147648035,0.29842581,46597.0,46596.0,0.2]
[1649147648132,0.29842581,46597.0,46596.0,0.28668394]
[1649147648536,0.0005937,46599.0,46597.0,1.75]
[1649147648636,0.0005937,46599.0,46598.0,0.29422845]
[1649147648898,0.053645,46613.0,46610.0,0.31129154]
[1649147649090,0.053645,46613.0,46610.0,0.34796425]
[1649147649292,0.053645,46613.0,46610.0,0.03667271]
[1649147649393,0.3,46612.0,46610.0,0.03667271]
[1649147649590,0.3428,46612.0,46610.0,0.03667271]
[1649147649691,0.3,46611.0,46610.0,0.03667271]
[1649147649792,0.44366753,46611.0,46610.0,0.03667271]
[1649147649990,0.54366753,46611.0,46610.0,0.03667271]
[1649147652145,0.24366753,46611.0,46610.0,0.03667271]
[1649147652347,0.14366753,46611.0,46610.0,0.03667271]
[1649147653425,0.14366753,46611.0,46610.0,0.34751653]
[1649147653726,0.0428,46612.0,46610.0,0.03677184]
[1649147656431,0.0428,46612.0,46610.0,0.16677184]
[1649147657234,0.1,46614.0,46610.0,0.16677184]
[1649147657333,0.35938156,46617.0,46610.0,0.16677184]
[1649147657434,0.00057506,46613.0,46610.0,0.16677184]
[1649147657933,0.00057506,46613.0,46612.0,0.28095106]
[1649147658133,0.00057506,46613.0,46610.0,0.16677184]
[1649147658435,0.01073,46618.0,46610.0,0.16677184]
[1649147658537,0.06435215,46619.0,46616.0,0.27349836]
[1649147659589,0.06435215,46619.0,46616.0,0.31104436]
[1649147659789,0.32729171,46619.0,46616.0,0.31104436]
[1649147659991,0.42729171,46619.0,46616.0,0.31104436]
[1649147660282,0.16435215,46619.0,46616.0,0.31104436]
[1649147660531,0.14369086,46618.0,46616.0,0.31104436]
[1649147660833,0.19369086,46618.0,46616.0,0.31104436]
[1649147661435,0.05,46618.0,46616.0,0.31104436]
[1649147661632,0.10057623,46619.0,46617.0,0.25581876]
[1649147661633,0.15057623,46619.0,46617.0,0.25581876]
[1649147661832,0.15057623,46619.0,46616.0,0.31104436]
[1649147662033,0.15,46619.0,46616.0,0.31104436]
[1649147662140,0.1,46619.0,46616.0,0.31104436]
[1649147662239,0.00057622,46620.0,46616.0,0.31104436]
[1649147662437,0.00057622,46620.0,46616.0,0.037546]
[1649147662786,0.00057622,46620.0,46617.0,0.25362491]
[1649147663238,0.2806014,46624.0,46617.0,0.25362491]
[1649147663438,0.00057605,46621.0,46617.0,0.25362491]
[1649147663637,0.053639,46619.0,46617.0,0.25372849]
[1649147664184,0.053639,46619.0,46617.0,0.29039602]
[1649147665486,0.053639,46619.0,46617.0,0.29029244]
[1649147666591,0.14371638,46618.0,46617.0,0.29029244]
[1649147666987,0.14371638,46618.0,46617.0,0.34029244]
[1649147667631,0.08447322,46618.0,46617.0,0.30362491]
[1649147668479,0.08447322,46618.0,46617.0,0.27326242]
[1649147668581,0.08447322,46618.0,46617.0,0.25362491]
[1649147669386,0.08447322,46618.0,46617.0,0.25372849]
[1649147670334,0.08447322,46618.0,46617.0,0.30372849]
[1649147670537,0.08447322,46618.0,46617.0,0.05010358]
[1649147670688,0.38447322,46618.0,46617.0,0.00010358]
[1649147673485,0.08447322,46618.0,46617.0,0.00010358]
[1649147673686,0.08447322,46618.0,46612.0,0.05010358]
[1649147673789,0.05364744,46617.0,46612.0,0.05010358]
[1649147673886,0.053648,46616.0,46612.0,0.05010358]
[1649147674286,0.08447322,46615.0,46612.0,0.05010358]
[1649147674389,0.08410718,46615.0,46612.0,0.05010358]
[1649147675439,0.0005761,46616.0,46612.0,0.05010358]
[1649147675786,0.0005761,46616.0,46615.0,0.22457688]
[1649147675886,0.0005761,46616.0,46612.0,0.05010358]
[1649147675987,0.0005761,46616.0,46612.0,0.05]
[1649147676437,0.63904895,46618.0,46612.0,0.05]
[1649147676638,0.0005761,46616.0,46612.0,0.082185]
[1649147677591,0.63904895,46618.0,46612.0,0.082185]
[1649147677789,0.0005761,46616.0,46612.0,0.082185]
[1649147678088,0.0005761,46616.0,46615.0,0.00010193]
[1649147678882,0.68904895,46618.0,46615.0,0.03228493]
[1649147679082,0.68962504,46618.0,46615.0,0.08228493]
[1649147679984,0.68904895,46618.0,46615.0,0.08228493]
[1649147680434,0.68904895,46618.0,46615.0,0.07228493]
[1649147681342,0.14335888,46617.0,46615.0,0.07228493]
[1649147681839,0.14335888,46617.0,46615.0,0.072183]
[1649147683876,0.14335888,46617.0,46616.0,0.00010187]
[1649147685882,0.14335888,46617.0,46615.0,0.07228487]
[1649147688031,0.19699988,46617.0,46616.0,0.00010187]
[1649147688333,0.49699988,46617.0,46616.0,0.00010187]
[1649147688529,0.59699988,46617.0,46616.0,0.00010187]
[1649147688735,0.66424984,46617.0,46616.0,0.00010187]
[1649147688834,0.65971943,46617.0,46616.0,0.00010187]
[1649147689034,0.93811468,46617.0,46616.0,0.00010187]
[1649147689133,0.63811468,46617.0,46616.0,0.00010187]
[1649147689230,0.92043929,46617.0,46616.0,0.00010187]
[1649147689981,0.92043929,46617.0,46610.0,0.13010187]
[1649147690135,0.107306,46615.0,46610.0,0.18010187]
[1649147690439,0.0428,46614.0,46610.0,0.18010187]
[1649147691036,0.0428,46614.0,46610.0,0.24447287]
[1649147691240,0.0428,46614.0,46612.0,0.27659644]
[1649147691338,0.0428,46614.0,46610.0,0.53555201]
[1649147691838,0.0428,46614.0,46610.0,0.53545014]
[1649147692239,0.0433912,46614.0,46610.0,0.53545014]
[1649147692441,0.0433912,46614.0,46610.0,0.80479163]
[1649147693043,0.0395512,46614.0,46610.0,0.80479163]
[1649147693241,0.03896,46614.0,46610.0,0.80479163]
[1649147693443,0.0395512,46614.0,46610.0,0.80479163]
[1649147693642,0.0395512,46614.0,46612.0,0.00010212]
[1649147693986,0.0395512,46614.0,46612.0,0.03228712]
[1649147694389,0.03896,46614.0,46612.0,0.03228712]
[1649147694838,0.14325079,46613.0,46612.0,0.03228712]
[1649147695138,0.19325079,46613.0,46612.0,0.03228712]
[1649147698229,0.1915803,46613.0,46612.0,0.03228712]
[1649147699132,0.14325079,46613.0,46612.0,0.03228712]
[1649147701191,0.18605079,46613.0,46612.0,0.03228712]
[1649147703234,0.23605079,46613.0,46612.0,0.03228712]
[1649147704637,0.23605079,46613.0,46612.0,0.00010212]
[1649147706180,0.23605079,46613.0,46610.0,0.53555026]
[1649147706279,0.18605079,46613.0,46610.0,0.53555026]
[1649147706529,0.14325079,46612.0,46610.0,0.53555026]
[1649147706729,0.0428,46611.0,46610.0,0.53555026]
[1649147707279,0.0428,46611.0,46610.0,0.83555026]
[1649147707629,0.14325079,46612.0,46610.0,0.83555026]
[1649147707731,0.1428,46616.0,46610.0,0.83555026]
[1649147707834,0.0928,46616.0,46610.0,0.83555026]
[1649147707936,0.00057472,46613.0,46610.0,0.83555026]
[1649147708138,0.00057472,46613.0,46612.0,0.00010012]
[1649147708873,0.01073,46617.0,46612.0,0.00010012]
[1649147708975,0.01073,46617.0,46616.0,0.27250253]
[1649147709083,0.63904895,46618.0,46616.0,0.27250253]
[1649147709174,0.63904895,46618.0,46617.0,0.31800504]
[1649147709678,0.7823541,46618.0,46617.0,0.31800504]
[1649147709974,0.8823541,46618.0,46617.0,0.31800504]
[1649147712333,0.8823541,46618.0,46617.0,0.31810486]
[1649147714714,0.8823541,46618.0,46617.0,0.61810486]
[1649147715563,0.73904895,46618.0,46617.0,0.61810486]
[1649147716492,0.63904895,46618.0,46617.0,0.31810486]
[1649147716590,0.63904895,46618.0,46617.0,0.31800602]
[1649147718193,0.63893116,46618.0,46617.0,0.31800602]
[1649147720529,0.63893116,46618.0,46617.0,0.32184602]
[1649147725340,0.84893116,46618.0,46617.0,0.32184602]
[1649147726995,0.90257016,46618.0,46617.0,0.32184602]
[1649147727396,0.90257016,46618.0,46617.0,0.6247981]
[1649147727932,0.84893116,46618.0,46617.0,0.32184602]
[1649147729033,0.84893116,46618.0,46617.0,0.54228088]
[1649147730185,0.84893116,46618.0,46617.0,0.32184602]
[1649147731288,0.84893116,46618.0,46617.0,0.61031345]
[1649147732831,0.84893116,46618.0,46617.0,0.91031345]
[1649147732980,0.84893116,46618.0,46617.0,0.61031345]
[1649147733685,0.84893116,46618.0,46617.0,0.32184602]
[1649147733780,0.84893116,46618.0,46617.0,0.62184602]
[1649147734237,0.84893116,46618.0,46617.0,0.61800602]
[1649147734839,0.84893116,46618.0,46617.0,0.92004325]
[1649147736333,0.84893116,46618.0,46617.0,0.61800602]
[1649147737283,0.84893116,46618.0,46617.0,0.31800602]
[1649147737835,0.84893116,46618.0,46617.0,0.61800602]
[1649147738537,0.84893116,46618.0,46617.0,0.31793199]
[1649147738790,0.84893116,46618.0,46617.0,0.61793199]
[1649147745092,0.84847116,46618.0,46617.0,0.61793199]
[1649147746200,0.2295,46633.0,46618.0,1.9]
[1649147746201,0.1941,46631.0,46618.0,1.9]
[1649147746294,0.1941,46631.0,46620.0,0.053625]
[1649147746442,0.1941,46631.0,46621.0,0.342898]
[1649147746786,0.1941,46631.0,46621.0,0.392898]
[1649147747487,0.00057607,46628.0,46621.0,0.392898]
[1649147747587,0.00057607,46628.0,46622.0,0.01072]
[1649147747685,0.00057607,46628.0,46624.0,0.05362]
[1649147747887,0.00057607,46628.0,46625.0,0.29774236]
[1649147747986,0.00057607,46628.0,46625.0,0.36919236]
[1649147748488,0.73235433,46635.0,46634.0,0.30175247]
[1649147748588,0.5757739,46635.0,46634.0,0.30175247]
[1649147748689,0.6257739,46635.0,46634.0,0.30175247]
[1649147748791,0.6257739,46635.0,46634.0,0.35175247]
[1649147749190,0.6257739,46635.0,46634.0,0.35432462]
[1649147749701,0.6257739,46635.0,46634.0,0.30175247]
[1649147749796,0.4,46625.0,46624.0,0.25787169]
[1649147749891,0.4,46619.0,46618.0,0.01073]
[1649147749992,0.2,46619.0,46618.0,0.01073]
[1649147750231,0.05,46618.0,46615.0,0.01073]
[1649147750432,0.23664038,46618.0,46615.0,0.320928]
[1649147750533,0.23664038,46618.0,46616.0,0.01073]
[1649147750635,0.2,46616.0,46615.0,0.320928]
[1649147750735,0.2,46616.0,46615.0,0.33177799]
[1649147750833,0.19976502,46616.0,46615.0,0.33177799]
[1649147750932,0.19976502,46616.0,46615.0,0.02483999]
[1649147751033,0.75338602,46616.0,46615.0,0.02483999]
[1649147751540,0.75338602,46616.0,46615.0,0.01399]
[1649147751634,0.75338602,46616.0,46614.0,1.59594659]
[1649147751733,0.75338602,46616.0,46614.0,1.33370263]
[1649147751834,0.75338602,46616.0,46614.0,0.2772079]
[1649147753439,0.75338602,46616.0,46615.0,0.29735141]
[1649147753640,0.75338602,46616.0,46615.0,0.61828241]
[1649147753740,0.75338602,46616.0,46615.0,0.320931]
[1649147754380,0.75338602,46616.0,46615.0,0.32102231]
[1649147755880,0.96338602,46616.0,46615.0,0.32102231]
[1649147756082,0.96338602,46616.0,46615.0,9.131e-05]
[1649147756685,0.46338602,46616.0,46615.0,9.131e-05]
[1649147757928,0.46338602,46616.0,46615.0,0.32102231]
[1649147758729,0.46338602,46616.0,46615.0,9.131e-05]
[1649147759230,0.46338602,46616.0,46615.0,0.32102231]
[1649147761031,0.46338602,46616.0,46615.0,0.61843441]
[1649147762280,0.46338602,46616.0,46615.0,9.131e-05]
[1649147762934,0.46338602,46616.0,46611.0,0.01073]
[1649147763032,0.19976502,46613.0,46612.0,0.56291077]
[1649147764536,0.19976502,46613.0,46612.0,0.55421143]
[1649147764733,0.19976502,46613.0,46612.0,0.73050893]
[1649147765034,0.00057617,46615.0,46614.0,0.320931]
[1649147765136,0.00057617,46615.0,46614.0,0.61848063]
[1649147765237,0.263621,46616.0,46614.0,0.61848063]
[1649147765335,0.263621,46616.0,46615.0,0.29749352]
[1649147765434,0.263621,46616.0,46615.0,0.61843352]
[1649147769229,0.263621,46616.0,46615.0,0.61852214]
[1649147776430,0.00448081,46618.0,46616.0,1.35]
[1649147776530,0.00448081,46618.0,46617.0,0.3]
[1649147777281,0.00390466,46618.0,46617.0,0.3]
[1649147777580,0.05752766,46618.0,46617.0,0.3]
[1649147777982,0.05752766,46618.0,46615.0,8.862e-05]
[1649147778933,0.05752766,46618.0,46614.0,0.30008851]
[1649147779083,0.05752766,46618.0,46616.0,1.37220975]
[1649147779233,0.05752766,46618.0,46617.0,0.3]
[1649147779441,0.26752766,46618.0,46617.0,0.3]
[1649147780980,0.26752766,46618.0,46616.0,1.37229831]
[1649147781083,0.26752766,46618.0,46613.0,0.59487035]
[1649147781183,0.26752766,46618.0,46613.0,0.38845558]
[1649147781382,0.05,46617.0,46613.0,0.38845558]
[1649147781483,0.26752766,46618.0,46613.0,0.38845558]
[1649147781680,0.26752766,46618.0,46613.0,0.06758258]
[1649147782186,0.26752766,46618.0,46610.0,0.01073]
[1649147782284,0.2825844,46616.0,46610.0,0.18704198]
[1649147782383,0.053635,46615.0,46610.0,0.17631198]
[1649147782483,0.053635,46614.0,46610.0,0.17631198]
[1649147782684,0.053635,46614.0,46608.0,0.01073]
[1649147782783,0.053635,46614.0,46608.0,0.04083937]
[1649147782984,0.053635,46614.0,46608.0,0.03010937]
[1649147783133,0.053635,46614.0,46608.0,0.25048125]
[1649147783234,0.34295877,46614.0,46608.0,0.25048125]
[1649147783334,0.34295877,46614.0,46608.0,0.03010937]
[1649147783534,0.00057618,46613.0,46608.0,0.03010937]
[1649147783636,0.16149218,46613.0,46608.0,0.03010937]
[1649147783735,0.053639,46612.0,46606.0,0.22037188]
[1649147784181,0.103639,46612.0,46606.0,0.22037188]
[1649147784692,0.00057619,46611.0,46606.0,0.22037188]
[1649147784785,0.053639,46610.0,46607.0,0.32094]
[1649147784887,0.053639,46610.0,46606.0,0.22037188]
[1649147785436,0.053639,46610.0,46607.0,0.3]
[1649147785537,0.053639,46610.0,46607.0,0.52037188]
[1649147785639,0.053639,46610.0,46607.0,0.3]
[1649147785737,0.053639,46610.0,46607.0,0.52037188]
[1649147785988,0.053639,46610.0,46607.0,0.3]
[1649147786239,0.053639,46610.0,46607.0,0.52037188]
[1649147786339,0.053639,46610.0,46607.0,0.3]
[1649147786440,0.053639,46610.0,46608.0,0.32094]